[Event "*** Titled Tuesday Blitz"]
[Site "Chess.com"]
[Date "2019.10.01"]
[Round "8"]
[White "morphinho22"]
[Black "Svet99"]
[Result "1-0"]
[WhiteElo "2356"]
[BlackElo "2176"]
[TimeControl "180+2"]
[EndTime "14:56:52 PDT"]
[Termination "morphinho22 won by resignation"]

1. Nf3 {[%clk 0:03:01.9]} 1... d5 {[%clk 0:02:59]} 2. e3 {[%clk 0:02:59.8]} 2...
Nf6 {[%clk 0:02:59.7]} 3. c4 {[%clk 0:02:57.3]} 3... Bg4 {[%clk 0:02:59.8]} 4.
cxd5 {[%clk 0:02:56]} 4... Nxd5 {[%clk 0:02:55.6]} 5. Qb3 {[%clk 0:02:41.7]}
5... Nb6 {[%clk 0:02:53.8]} 6. Nc3 {[%clk 0:02:33.4]} 6... N8d7 {[%clk
0:02:53.1]} 7. d4 {[%clk 0:02:31]} 7... Bxf3 {[%clk 0:02:51.5]} 8. gxf3 {[%clk
0:02:25.7]} 8... g6 {[%clk 0:02:49]} 9. a4 {[%clk 0:02:24.7]} 9... a5 {[%clk
0:02:48.5]} 10. h4 {[%clk 0:02:24]} 10... h5 {[%clk 0:02:47.6]} 11. f4 {[%clk
0:02:23.7]} 11... e6 {[%clk 0:02:46.7]} 12. Bg2 {[%clk 0:02:24.4]} 12... c6
{[%clk 0:02:46.6]} 13. Bd2 {[%clk 0:02:07.5]} 13... Be7 {[%clk 0:02:47.3]} 14.
Ne4 {[%clk 0:02:05]} 14... Nf6 {[%clk 0:02:36.1]} 15. Ng5 {[%clk 0:01:58.6]}
15... Nfd5 {[%clk 0:02:32]} 16. O-O {[%clk 0:01:41.9]} 16... O-O {[%clk
0:02:30.7]} 17. Rfd1 {[%clk 0:01:37.6]} 17... Bf6 {[%clk 0:02:17.6]} 18. Rac1
{[%clk 0:01:29.2]} 18... Ne7 {[%clk 0:02:16.4]} 19. Rc5 {[%clk 0:01:27.3]} 19...
Nf5 {[%clk 0:02:15.9]} 20. Bxa5 {[%clk 0:01:24.4]} 20... Rxa5 {[%clk 0:02:13.3]}
21. Rxa5 {[%clk 0:01:26.3]} 21... Nxh4 {[%clk 0:02:05.6]} 22. Ne4 {[%clk
0:01:19.3]} 22... Be7 {[%clk 0:02:04.5]} 23. Ra7 {[%clk 0:01:17.8]} 23... Qc7
{[%clk 0:01:44.1]} 24. a5 {[%clk 0:01:16.6]} 24... Nc8 {[%clk 0:01:43.6]} 25.
Qxb7 {[%clk 0:01:14.7]} 25... Qd8 {[%clk 0:01:38.3]} 26. Ra8 {[%clk 0:01:12.2]}
26... Nxg2 {[%clk 0:01:37.5]} 27. Kxg2 {[%clk 0:01:13]} 27... Qd5 {[%clk
0:01:38.3]} 28. f3 {[%clk 0:01:10.8]} 28... Nd6 {[%clk 0:01:38]} 29. Nxd6 {[%clk
0:01:10.9]} 29... Qxd6 {[%clk 0:01:37.4]} 30. Rxf8+ {[%clk 0:01:07.8]} 30...
Bxf8 {[%clk 0:01:35.1]} 31. Rc1 {[%clk 0:01:09.7]} 31... c5 {[%clk 0:01:34.3]}
32. Rxc5 {[%clk 0:01:06.1]} 32... h4 {[%clk 0:01:23.5]} 33. Rc8 {[%clk
0:01:02.2]} 33... g5 {[%clk 0:01:20.7]} 34. Qb8 {[%clk 0:01:01]} 34... Qe7
{[%clk 0:01:17.5]} 35. Rxf8+ {[%clk 0:00:57.9]} 35... Qxf8 {[%clk 0:01:09.8]}
36. Qxf8+ {[%clk 0:00:59.8]} 36... Kxf8 {[%clk 0:01:11]} 37. fxg5 {[%clk
0:01:01.7]} 1-0

[Event "*** Titled Tuesday Blitz"]
[Site "Chess.com"]
[Date "2019.10.01"]
[Round "8"]
[White "AntonSmirnov"]
[Black "ChessLover0108"]
[Result "1-0"]
[WhiteElo "2919"]
[BlackElo "2755"]
[TimeControl "180+2"]
[EndTime "14:56:54 PDT"]
[Termination "AntonSmirnov won by resignation"]

1. e4 {[%clk 0:03:01.9]} 1... c5 {[%clk 0:03:01.1]} 2. Nf3 {[%clk 0:02:59.3]}
2... d6 {[%clk 0:03:02.4]} 3. d4 {[%clk 0:03:00.6]} 3... cxd4 {[%clk 0:03:04.3]}
4. Nxd4 {[%clk 0:03:02.3]} 4... Nf6 {[%clk 0:03:05.8]} 5. Nc3 {[%clk 0:03:03.7]}
5... a6 {[%clk 0:03:07.3]} 6. Be3 {[%clk 0:03:04.5]} 6... e5 {[%clk 0:03:07.9]}
7. Nde2 {[%clk 0:03:05.9]} 7... Be7 {[%clk 0:02:51.8]} 8. Ng3 {[%clk 0:03:05.3]}
8... Be6 {[%clk 0:02:13.6]} 9. Be2 {[%clk 0:03:03.7]} 9... Nc6 {[%clk
0:02:03.6]} 10. O-O {[%clk 0:03:02.4]} 10... O-O {[%clk 0:01:57.4]} 11. Nd5
{[%clk 0:02:59.6]} 11... Rc8 {[%clk 0:01:31.1]} 12. c4 {[%clk 0:02:56.6]} 12...
Bxd5 {[%clk 0:01:28.4]} 13. exd5 {[%clk 0:02:57]} 13... Nd4 {[%clk 0:01:29.8]}
14. Bxd4 {[%clk 0:02:57.1]} 14... exd4 {[%clk 0:01:31.7]} 15. Qxd4 {[%clk
0:02:54.5]} 15... Nd7 {[%clk 0:01:32.8]} 16. Nh5 {[%clk 0:02:34.3]} 16... Nf6
{[%clk 0:01:01.9]} 17. Ng3 {[%clk 0:02:19.7]} 17... Nd7 {[%clk 0:01:02.7]} 18.
Ne4 {[%clk 0:02:20.9]} 18... Nc5 {[%clk 0:00:42.2]} 19. Nxc5 {[%clk 0:02:16.8]}
19... Rxc5 {[%clk 0:00:36.3]} 20. Rae1 {[%clk 0:02:17.3]} 20... Bf6 {[%clk
0:00:35.8]} 21. Qd2 {[%clk 0:02:18.1]} 21... a5 {[%clk 0:00:31.9]} 22. Bd3
{[%clk 0:02:18.8]} 22... g6 {[%clk 0:00:32.1]} 23. g3 {[%clk 0:02:19.6]} 23...
Qb6 {[%clk 0:00:32.5]} 24. b3 {[%clk 0:02:19.3]} 24... Kg7 {[%clk 0:00:31.6]}
25. h4 {[%clk 0:02:18.9]} 25... h5 {[%clk 0:00:31.8]} 26. Kg2 {[%clk 0:02:19.2]}
26... a4 {[%clk 0:00:24.8]} 27. Bc2 {[%clk 0:02:19.9]} 27... axb3 {[%clk
0:00:20.9]} 28. axb3 {[%clk 0:02:21.8]} 28... Ra8 {[%clk 0:00:18.8]} 29. Re2
{[%clk 0:02:22.2]} 29... Ra2 {[%clk 0:00:18]} 30. Rfe1 {[%clk 0:02:13.8]} 30...
Rc7 {[%clk 0:00:14.5]} 31. Qf4 {[%clk 0:02:07.9]} 31... Rd7 {[%clk 0:00:07]} 32.
g4 {[%clk 0:01:56.3]} 32... hxg4 {[%clk 0:00:05.1]} 33. h5 {[%clk 0:01:55.6]}
33... Qd4 {[%clk 0:00:05.8]} 34. Be4 {[%clk 0:01:44.8]} 34... Qe5 {[%clk
0:00:06]} 35. Qxe5 {[%clk 0:01:45.4]} 35... Bxe5 {[%clk 0:00:06.3]} 36. Rxa2
{[%clk 0:01:46.5]} 1-0

[Event "*** Titled Tuesday Blitz"]
[Site "Chess.com"]
[Date "2019.10.01"]
[Round "8"]
[White "WeAintSurePal"]
[Black "Abdodi"]
[Result "0-1"]
[WhiteElo "2341"]
[BlackElo "2203"]
[TimeControl "180+2"]
[EndTime "14:56:55 PDT"]
[Termination "Abdodi won by resignation"]

1. Nf3 {[%clk 0:03:01.9]} 1... Nf6 {[%clk 0:03:00]} 2. b3 {[%clk 0:03:02.1]}
2... g6 {[%clk 0:02:56.2]} 3. Bb2 {[%clk 0:03:04]} 3... Bg7 {[%clk 0:02:57.3]}
4. g3 {[%clk 0:03:03.7]} 4... O-O {[%clk 0:02:58.3]} 5. Bg2 {[%clk 0:03:05.2]}
5... d6 {[%clk 0:02:57.6]} 6. O-O {[%clk 0:03:06.6]} 6... e5 {[%clk 0:02:58.2]}
7. c4 {[%clk 0:03:06.3]} 7... Nc6 {[%clk 0:02:58.3]} 8. Nc3 {[%clk 0:03:07.6]}
8... Be6 {[%clk 0:02:56.4]} 9. d4 {[%clk 0:03:08.2]} 9... exd4 {[%clk
0:02:55.7]} 10. Nxd4 {[%clk 0:03:10.1]} 10... Nxd4 {[%clk 0:02:55.5]} 11. Qxd4
{[%clk 0:03:12]} 11... Qe7 {[%clk 0:02:39.5]} 12. e4 {[%clk 0:02:58.4]} 12...
Nd7 {[%clk 0:02:36.2]} 13. Qxg7+ {[%clk 0:02:46]} 13... Kxg7 {[%clk 0:02:34.6]}
14. Nd5+ {[%clk 0:02:47.5]} 14... Qf6 {[%clk 0:02:35.4]} 15. Nxf6 {[%clk
0:02:47.5]} 15... Nxf6 {[%clk 0:02:34.7]} 16. g4 {[%clk 0:02:46.1]} 16... Bxg4
{[%clk 0:02:33.6]} 17. e5 {[%clk 0:02:47.3]} 17... dxe5 {[%clk 0:02:32.8]} 18.
Bxb7 {[%clk 0:02:47.9]} 18... Rae8 {[%clk 0:02:24.4]} 19. Rfe1 {[%clk
0:02:47.1]} 19... Nd7 {[%clk 0:02:23.5]} 20. Bc6 {[%clk 0:02:46.7]} 20... f6
{[%clk 0:02:21.2]} 21. Kg2 {[%clk 0:02:47]} 21... Bf5 {[%clk 0:02:11.3]} 22.
Rad1 {[%clk 0:02:46.3]} 22... Rf7 {[%clk 0:02:02.3]} 23. Ba3 {[%clk 0:02:38.2]}
23... Rb8 {[%clk 0:01:57.2]} 24. Bd5 {[%clk 0:02:33.9]} 24... Nf8 {[%clk
0:01:48.3]} 25. Bxf7 {[%clk 0:02:33.4]} 25... Kxf7 {[%clk 0:01:50.2]} 26. Bxf8
{[%clk 0:02:28.2]} 26... Rxf8 {[%clk 0:01:50]} 27. Rd5 {[%clk 0:02:29]} 27...
Rb8 {[%clk 0:01:37.3]} 28. Rc5 {[%clk 0:02:27.3]} 28... Rb7 {[%clk 0:01:37]} 29.
f3 {[%clk 0:02:27.9]} 29... Ke7 {[%clk 0:01:36.5]} 30. Rd1 {[%clk 0:02:28.9]}
30... Be6 {[%clk 0:01:34.9]} 31. h4 {[%clk 0:02:26.5]} 31... Bd7 {[%clk
0:01:27.1]} 32. Rcd5 {[%clk 0:02:20]} 32... Be6 {[%clk 0:01:25.8]} 33. Rd8
{[%clk 0:02:17.9]} 33... Rb6 {[%clk 0:01:20.4]} 34. Rh8 {[%clk 0:02:14.3]} 34...
h5 {[%clk 0:01:18.8]} 35. Rh7+ {[%clk 0:02:09.9]} 35... Bf7 {[%clk 0:01:19.5]}
36. Rd5 {[%clk 0:02:10.1]} 36... Ra6 {[%clk 0:01:14.7]} 37. a4 {[%clk
0:02:10.4]} 37... Rb6 {[%clk 0:01:15.2]} 38. Rb5 {[%clk 0:02:10.8]} 38... Rxb5
{[%clk 0:01:10.7]} 39. cxb5 {[%clk 0:02:06.9]} 39... Kf8 {[%clk 0:01:11]} 40.
Rh8+ {[%clk 0:01:57.8]} 40... Bg8 {[%clk 0:01:11]} 41. Kf2 {[%clk 0:01:54.7]}
41... Kg7 {[%clk 0:01:11.4]} 42. Rxg8+ {[%clk 0:01:55.9]} 42... Kxg8 {[%clk
0:01:12]} 43. Ke3 {[%clk 0:01:57.8]} 43... f5 {[%clk 0:01:11.1]} 44. Kd3 {[%clk
0:01:51.4]} 44... g5 {[%clk 0:01:11.1]} 45. hxg5 {[%clk 0:01:52.3]} 45... Kg7
{[%clk 0:01:11.6]} 46. Ke3 {[%clk 0:01:51.5]} 46... Kg6 {[%clk 0:01:12]} 47. f4
{[%clk 0:01:52.9]} 47... e4 {[%clk 0:01:10.7]} 48. Kf2 {[%clk 0:01:51.9]} 48...
h4 {[%clk 0:01:11.6]} 49. Kg2 {[%clk 0:01:51.1]} 49... e3 {[%clk 0:01:07.9]} 50.
Kf3 {[%clk 0:01:52.2]} 50... h3 {[%clk 0:01:09.1]} 51. Kxe3 {[%clk 0:01:52.5]}
51... h2 {[%clk 0:01:10.1]} 52. Kd4 {[%clk 0:01:53.3]} 52... h1=Q {[%clk
0:01:11.2]} 0-1

[Event "*** Titled Tuesday Blitz"]
[Site "Chess.com"]
[Date "2019.10.01"]
[Round "8"]
[White "XiaoKangZhong"]
[Black "Ginzburg_Yakov"]
[Result "0-1"]
[WhiteElo "2430"]
[BlackElo "2580"]
[TimeControl "180+2"]
[EndTime "14:57:10 PDT"]
[Termination "Ginzburg_Yakov won by checkmate"]

1. e4 {[%clk 0:02:37.9]} 1... c5 {[%clk 0:02:59.6]} 2. c3 {[%clk 0:02:38.8]}
2... d5 {[%clk 0:02:53.9]} 3. exd5 {[%clk 0:02:40.7]} 3... Qxd5 {[%clk
0:02:54.7]} 4. d4 {[%clk 0:02:42.2]} 4... e5 {[%clk 0:02:48.4]} 5. dxe5 {[%clk
0:02:42.9]} 5... Qxe5+ {[%clk 0:02:49.3]} 6. Be3 {[%clk 0:02:40]} 6... Nc6
{[%clk 0:02:47.7]} 7. Nf3 {[%clk 0:02:40.8]} 7... Qc7 {[%clk 0:02:48.7]} 8. Na3
{[%clk 0:02:38.4]} 8... Nf6 {[%clk 0:02:41.7]} 9. Nb5 {[%clk 0:02:35.7]} 9...
Qb8 {[%clk 0:02:39.7]} 10. Qd2 {[%clk 0:02:23.2]} 10... Nh5 {[%clk 0:02:21.7]}
11. h3 {[%clk 0:02:12.5]} 11... a6 {[%clk 0:02:19.3]} 12. g4 {[%clk 0:02:13.1]}
12... axb5 {[%clk 0:02:18.9]} 13. gxh5 {[%clk 0:02:14.3]} 13... Be7 {[%clk
0:02:11.6]} 14. Bxb5 {[%clk 0:02:12.4]} 14... O-O {[%clk 0:02:09.8]} 15. h6
{[%clk 0:02:09.7]} 15... g6 {[%clk 0:02:09.7]} 16. h4 {[%clk 0:02:08.4]} 16...
Ne5 {[%clk 0:02:08.1]} 17. Nxe5 {[%clk 0:02:03.3]} 17... Qxe5 {[%clk 0:02:08.3]}
18. a3 {[%clk 0:02:01.6]} 18... Bg4 {[%clk 0:02:06.4]} 19. Rg1 {[%clk 0:01:59]}
19... Rad8 {[%clk 0:02:05.5]} 20. Qc2 {[%clk 0:01:53.9]} 20... Bxh4 {[%clk
0:01:57.5]} 21. Rxg4 {[%clk 0:01:46.7]} 21... Qxe3+ {[%clk 0:01:58.2]} 22. Qe2
{[%clk 0:01:48.3]} 22... Bxf2+ {[%clk 0:01:57.9]} 23. Kf1 {[%clk 0:01:48.8]}
23... Rd2 {[%clk 0:01:53]} 24. Qxe3 {[%clk 0:01:38.1]} 24... Bxe3 {[%clk
0:01:53.9]} 25. Rg2 {[%clk 0:01:32]} 25... Bxh6 {[%clk 0:01:47.6]} 26. Rxd2
{[%clk 0:01:31.9]} 26... Bxd2 {[%clk 0:01:48.3]} 27. Rd1 {[%clk 0:01:33.6]}
27... Rd8 {[%clk 0:01:44.3]} 28. Ke2 {[%clk 0:01:29.7]} 28... Bg5 {[%clk
0:01:44.6]} 29. Rxd8+ {[%clk 0:01:19.2]} 29... Bxd8 {[%clk 0:01:45.1]} 30. Kd3
{[%clk 0:01:16.3]} 30... f5 {[%clk 0:01:37.2]} 31. Kc4 {[%clk 0:01:17]} 31... b6
{[%clk 0:01:38.1]} 32. Kd5 {[%clk 0:01:17.5]} 32... Kf7 {[%clk 0:01:20.9]} 33.
Kd6 {[%clk 0:01:16.5]} 33... h5 {[%clk 0:01:12.6]} 34. Kd7 {[%clk 0:01:16.2]}
34... Bg5 {[%clk 0:01:10]} 35. Kc7 {[%clk 0:01:11.2]} 35... Bc1 {[%clk
0:01:08.5]} 36. Kxb6 {[%clk 0:01:02.7]} 36... Bxb2 {[%clk 0:01:09.3]} 37. a4
{[%clk 0:00:57.6]} 37... Bxc3 {[%clk 0:01:10.1]} 38. Kxc5 {[%clk 0:00:57.8]}
38... Kf6 {[%clk 0:01:07.6]} 39. Kc4 {[%clk 0:00:58.5]} 39... Ba5 {[%clk
0:01:08]} 40. Kd3 {[%clk 0:00:58.9]} 40... g5 {[%clk 0:01:08.8]} 41. Ke3 {[%clk
0:01:00]} 41... h4 {[%clk 0:01:09.9]} 42. Kf3 {[%clk 0:01:00.6]} 42... g4+
{[%clk 0:01:09.6]} 43. Kf4 {[%clk 0:01:00.3]} 43... Bd2# {[%clk 0:01:09.7]} 0-1

[Event "*** Titled Tuesday Blitz"]
[Site "Chess.com"]
[Date "2019.10.01"]
[Round "8"]
[White "Vuk2000"]
[Black "ChessQueen"]
[Result "1-0"]
[WhiteElo "2803"]
[BlackElo "2614"]
[TimeControl "180+2"]
[EndTime "14:57:17 PDT"]
[Termination "Vuk2000 won by resignation"]

1. d4 {[%clk 0:03:01.9]} 1... Nf6 {[%clk 0:02:59]} 2. Bg5 {[%clk 0:03:02.9]}
2... e6 {[%clk 0:02:57.9]} 3. e4 {[%clk 0:03:03.6]} 3... h6 {[%clk 0:02:55.4]}
4. Bxf6 {[%clk 0:03:04.5]} 4... Qxf6 {[%clk 0:02:55.7]} 5. c3 {[%clk 0:03:06.4]}
5... d5 {[%clk 0:02:49]} 6. Bd3 {[%clk 0:03:07.1]} 6... c5 {[%clk 0:02:47.5]} 7.
Nf3 {[%clk 0:03:01.3]} 7... Nc6 {[%clk 0:02:43.6]} 8. O-O {[%clk 0:02:57.6]}
8... cxd4 {[%clk 0:02:18.9]} 9. cxd4 {[%clk 0:02:56.3]} 9... dxe4 {[%clk
0:02:19.9]} 10. Bxe4 {[%clk 0:02:58.2]} 10... Bd6 {[%clk 0:02:16]} 11. Bxc6+
{[%clk 0:02:54.3]} 11... bxc6 {[%clk 0:02:16.5]} 12. Nc3 {[%clk 0:02:55.1]}
12... Bc7 {[%clk 0:02:06.6]} 13. Qa4 {[%clk 0:02:44.9]} 13... Bd7 {[%clk
0:02:00.6]} 14. Ne4 {[%clk 0:02:45.7]} 14... Qe7 {[%clk 0:01:54.6]} 15. Nc5
{[%clk 0:02:45.1]} 15... O-O {[%clk 0:01:55.5]} 16. Nxd7 {[%clk 0:02:42.3]}
16... Qxd7 {[%clk 0:01:56.5]} 17. Rac1 {[%clk 0:02:43.9]} 17... Rfc8 {[%clk
0:01:57]} 18. Rc4 {[%clk 0:02:45]} 18... Rab8 {[%clk 0:01:52.3]} 19. b3 {[%clk
0:02:42.5]} 19... Rb6 {[%clk 0:01:51.9]} 20. Rfc1 {[%clk 0:02:35.5]} 20... Bb8
{[%clk 0:01:52.6]} 21. Rc5 {[%clk 0:02:28]} 21... Bf4 {[%clk 0:01:41.4]} 22.
R1c2 {[%clk 0:02:13.8]} 22... Bd6 {[%clk 0:01:22.5]} 23. Ra5 {[%clk 0:01:52.3]}
23... Bb8 {[%clk 0:01:20.1]} 24. g3 {[%clk 0:01:48.5]} 24... Qb7 {[%clk
0:01:16.9]} 25. Qc4 {[%clk 0:01:42.6]} 25... Rb4 {[%clk 0:01:15.1]} 26. Qa6
{[%clk 0:01:42.4]} 26... Qxa6 {[%clk 0:00:57.7]} 27. Rxa6 {[%clk 0:01:43.3]}
27... Rb6 {[%clk 0:00:58.3]} 28. Ra4 {[%clk 0:01:43.4]} 28... f6 {[%clk
0:00:54.5]} 29. Nd2 {[%clk 0:01:42.5]} 29... Kf7 {[%clk 0:00:54.1]} 30. Nc4
{[%clk 0:01:32.5]} 30... Rb7 {[%clk 0:00:50]} 31. Na5 {[%clk 0:01:28.4]} 31...
Rb6 {[%clk 0:00:30]} 32. Rac4 {[%clk 0:01:28.8]} 32... Ke8 {[%clk 0:00:16.5]}
33. Nxc6 {[%clk 0:01:25.7]} 33... Bd6 {[%clk 0:00:09.9]} 34. Nxa7 {[%clk
0:01:22.7]} 34... Rxc4 {[%clk 0:00:10.8]} 35. Rxc4 {[%clk 0:01:23.8]} 35... Ra6
{[%clk 0:00:11.7]} 36. Nb5 {[%clk 0:01:25.1]} 36... Kd7 {[%clk 0:00:11.2]} 37.
a4 {[%clk 0:01:24]} 37... Bb8 {[%clk 0:00:10.2]} 38. Kf1 {[%clk 0:01:24.8]} 1-0

[Event "*** Titled Tuesday Blitz"]
[Site "Chess.com"]
[Date "2019.10.01"]
[Round "8"]
[White "fidetrainerNET"]
[Black "beccrajoy"]
[Result "0-1"]
[WhiteElo "2204"]
[BlackElo "1807"]
[TimeControl "180+2"]
[EndTime "14:57:17 PDT"]
[Termination "beccrajoy won by checkmate"]

1. b3 {[%clk 0:03:01.9]} 1... d5 {[%clk 0:02:56.4]} 2. g3 {[%clk 0:03:01.3]}
2... c5 {[%clk 0:02:50.2]} 3. Bg2 {[%clk 0:02:58.9]} 3... Nc6 {[%clk 0:02:51.7]}
4. Nf3 {[%clk 0:02:54.7]} 4... Nf6 {[%clk 0:02:51.2]} 5. O-O {[%clk 0:02:53.5]}
5... e5 {[%clk 0:02:51.3]} 6. c4 {[%clk 0:02:50.5]} 6... e4 {[%clk 0:02:46.4]}
7. Ng5 {[%clk 0:02:42.5]} 7... h6 {[%clk 0:02:44.4]} 8. cxd5 {[%clk 0:02:39.9]}
8... hxg5 {[%clk 0:02:43.6]} 9. dxc6 {[%clk 0:02:39.9]} 9... bxc6 {[%clk
0:02:39.8]} 10. Nc3 {[%clk 0:02:38.8]} 10... Bf5 {[%clk 0:02:27.3]} 11. f3
{[%clk 0:02:26.3]} 11... Qd7 {[%clk 0:01:52.1]} 12. g4 {[%clk 0:02:05.2]} 12...
Bxg4 {[%clk 0:01:05.5]} 13. fxg4 {[%clk 0:01:57.6]} 13... Nxg4 {[%clk
0:01:07.4]} 14. h3 {[%clk 0:01:37.5]} 14... Qd6 {[%clk 0:00:34.9]} 15. hxg4
{[%clk 0:01:24]} 15... Qh2+ {[%clk 0:00:35.4]} 16. Kf2 {[%clk 0:01:24.2]} 16...
Qh4+ {[%clk 0:00:33.6]} 17. Ke3 {[%clk 0:01:24.1]} 17... Qg3+ {[%clk 0:00:30.1]}
18. Kxe4 {[%clk 0:01:21.1]} 18... Qxg4+ {[%clk 0:00:25.9]} 19. Kd3 {[%clk
0:01:20.1]} 19... Qxg2 {[%clk 0:00:22.2]} 20. Kc2 {[%clk 0:01:14.3]} 20... O-O-O
{[%clk 0:00:19.7]} 21. e3 {[%clk 0:01:04.3]} 21... Rh2 {[%clk 0:00:12.7]} 22.
Rxf7 {[%clk 0:01:00.4]} 22... Bd6 {[%clk 0:00:12.1]} 23. Qf3 {[%clk 0:00:56]}
23... Be5 {[%clk 0:00:12.8]} 24. Qxc6+ {[%clk 0:00:53.7]} 24... Qxc6 {[%clk
0:00:10.3]} 25. Bb2 {[%clk 0:00:52.8]} 25... Bxc3 {[%clk 0:00:11.3]} 26. Bxc3
{[%clk 0:00:53.5]} 26... Qe4+ {[%clk 0:00:13.1]} 27. Kb2 {[%clk 0:00:54.4]}
27... Qg2 {[%clk 0:00:12.9]} 28. Rxa7 {[%clk 0:00:50.9]} 28... Rxd2+ {[%clk
0:00:13.7]} 29. Bxd2 {[%clk 0:00:49.8]} 29... Qxd2+ {[%clk 0:00:15.6]} 30. Ka3
{[%clk 0:00:51.6]} 30... Qb4# {[%clk 0:00:17]} 0-1

[Event "*** Titled Tuesday Blitz"]
[Site "Chess.com"]
[Date "2019.10.01"]
[Round "8"]
[White "Keaton87"]
[Black "Oleg_Papayan"]
[Result "1-0"]
[WhiteElo "2585"]
[BlackElo "2411"]
[TimeControl "180+2"]
[EndTime "14:57:21 PDT"]
[Termination "Keaton87 won by resignation"]

1. d4 {[%clk 0:02:59.9]} 1... Nf6 {[%clk 0:02:57.5]} 2. Bg5 {[%clk 0:03:00.9]}
2... d5 {[%clk 0:02:56]} 3. Nd2 {[%clk 0:03:01]} 3... c5 {[%clk 0:02:56.4]} 4.
Bxf6 {[%clk 0:03:02.2]} 4... gxf6 {[%clk 0:02:55.7]} 5. dxc5 {[%clk 0:03:03.3]}
5... e5 {[%clk 0:02:55.2]} 6. e4 {[%clk 0:03:04.3]} 6... d4 {[%clk 0:02:56.8]}
7. Bc4 {[%clk 0:03:05.2]} 7... Bxc5 {[%clk 0:02:52.2]} 8. Ne2 {[%clk 0:03:06.1]}
8... Nc6 {[%clk 0:02:43.8]} 9. O-O {[%clk 0:03:06.6]} 9... Qe7 {[%clk
0:02:26.6]} 10. Ng3 {[%clk 0:03:07.3]} 10... Be6 {[%clk 0:02:26.9]} 11. Nf5
{[%clk 0:03:03.2]} 11... Bxf5 {[%clk 0:02:10.9]} 12. exf5 {[%clk 0:03:05.1]}
12... O-O {[%clk 0:01:43.9]} 13. Ne4 {[%clk 0:03:03.6]} 13... Kh8 {[%clk
0:01:45.4]} 14. Qh5 {[%clk 0:03:03]} 14... Rg8 {[%clk 0:01:19.6]} 15. Bxf7
{[%clk 0:03:02]} 15... Rg7 {[%clk 0:01:20.7]} 16. Bc4 {[%clk 0:02:57.3]} 16...
Nb4 {[%clk 0:01:10.7]} 17. g3 {[%clk 0:02:44.8]} 17... Nxc2 {[%clk 0:01:07.7]}
18. Rac1 {[%clk 0:02:44.5]} 18... Nb4 {[%clk 0:01:04.5]} 19. a3 {[%clk
0:02:39.4]} 19... Nc6 {[%clk 0:01:05.6]} 20. Bd5 {[%clk 0:02:35.5]} 20... Bb6
{[%clk 0:00:41.1]} 21. Bxc6 {[%clk 0:02:35.8]} 21... bxc6 {[%clk 0:00:43]} 22.
Rxc6 {[%clk 0:02:36.9]} 22... d3 {[%clk 0:00:44.9]} 23. Rxf6 {[%clk 0:02:34.5]}
23... d2 {[%clk 0:00:44.9]} 24. Re6 {[%clk 0:02:34.6]} 24... Qd7 {[%clk
0:00:43.8]} 25. Rd6 {[%clk 0:02:29.6]} 25... Qb5 {[%clk 0:00:43]} 26. Rxd2
{[%clk 0:02:29.2]} 26... Bd4 {[%clk 0:00:36.5]} 27. Rc2 {[%clk 0:02:14.1]} 27...
Qd3 {[%clk 0:00:35.8]} 28. Qe2 {[%clk 0:02:12.9]} 28... Qb3 {[%clk 0:00:37.3]}
29. Rfc1 {[%clk 0:02:07.3]} 29... Rf8 {[%clk 0:00:38.1]} 30. Rc8 {[%clk
0:02:05.4]} 30... Rf7 {[%clk 0:00:39.8]} 31. Qh5 {[%clk 0:01:56.3]} 31... Qxb2
{[%clk 0:00:19.4]} 32. Qxf7 {[%clk 0:01:38.7]} 32... Qxc1+ {[%clk 0:00:18.1]}
33. Rxc1 {[%clk 0:01:40.6]} 33... Rxf7 {[%clk 0:00:19.2]} 34. g4 {[%clk
0:01:37.3]} 34... h5 {[%clk 0:00:20.2]} 35. h3 {[%clk 0:01:33.4]} 35... hxg4
{[%clk 0:00:18.3]} 36. hxg4 {[%clk 0:01:35.3]} 36... Rg7 {[%clk 0:00:16.1]} 37.
g5 {[%clk 0:01:33.5]} 37... Rb7 {[%clk 0:00:15.5]} 38. Kg2 {[%clk 0:01:32.7]}
38... Rb3 {[%clk 0:00:15.7]} 39. Rc8+ {[%clk 0:01:32.9]} 39... Kg7 {[%clk
0:00:16.5]} 40. Rc7+ {[%clk 0:01:34]} 40... Kf8 {[%clk 0:00:16.6]} 41. g6 {[%clk
0:01:34.4]} 41... Rb6 {[%clk 0:00:15.9]} 42. f6 {[%clk 0:01:32.6]} 1-0

[Event "*** Titled Tuesday Blitz"]
[Site "Chess.com"]
[Date "2019.10.01"]
[Round "8"]
[White "novocane"]
[Black "M1711"]
[Result "0-1"]
[WhiteElo "2318"]
[BlackElo "2550"]
[TimeControl "180+2"]
[EndTime "14:57:30 PDT"]
[Termination "M1711 won by resignation"]

1. d4 {[%clk 0:03:01.8]} 1... Nf6 {[%clk 0:03:00.2]} 2. c4 {[%clk 0:03:02.8]}
2... c5 {[%clk 0:03:01.4]} 3. d5 {[%clk 0:03:04.1]} 3... b5 {[%clk 0:03:02.2]}
4. cxb5 {[%clk 0:03:04.5]} 4... h5 {[%clk 0:03:03.2]} 5. Nc3 {[%clk 0:02:51.4]}
5... h4 {[%clk 0:03:03.8]} 6. e4 {[%clk 0:02:46.5]} 6... d6 {[%clk 0:03:04.3]}
7. h3 {[%clk 0:02:42]} 7... a6 {[%clk 0:03:02.1]} 8. Nf3 {[%clk 0:02:33.9]} 8...
Rh5 {[%clk 0:03:02.8]} 9. Bf4 {[%clk 0:02:03.1]} 9... Qa5 {[%clk 0:02:51.2]} 10.
Qd2 {[%clk 0:01:37.6]} 10... Nbd7 {[%clk 0:02:04.2]} 11. a4 {[%clk 0:00:46.6]}
11... Qb4 {[%clk 0:01:55]} 12. Bd3 {[%clk 0:00:20.6]} 12... axb5 {[%clk
0:01:53.7]} 13. O-O {[%clk 0:00:19.4]} 13... c4 {[%clk 0:01:36.9]} 14. Bc2
{[%clk 0:00:18.9]} 14... Bb7 {[%clk 0:00:59.3]} 15. axb5 {[%clk 0:00:17.3]}
15... Nc5 {[%clk 0:00:47.2]} 16. Rxa8+ {[%clk 0:00:17.4]} 16... Bxa8 {[%clk
0:00:49.1]} 17. Ra1 {[%clk 0:00:18.7]} 17... Bb7 {[%clk 0:00:50.6]} 18. e5
{[%clk 0:00:15.3]} 18... Nxd5 {[%clk 0:00:36.2]} 19. exd6 {[%clk 0:00:07.2]}
19... Qxb2 {[%clk 0:00:25.2]} 20. dxe7 {[%clk 0:00:03.4]} 20... Qxa1+ {[%clk
0:00:23.8]} 21. Nd1 {[%clk 0:00:04.4]} 21... Bxe7 {[%clk 0:00:23.1]} 22. Be5
{[%clk 0:00:02.9]} 22... Rxe5 {[%clk 0:00:23.1]} 23. Nxe5 {[%clk 0:00:04.2]}
23... Qxe5 {[%clk 0:00:25]} 24. Ne3 {[%clk 0:00:05.6]} 24... Nxe3 {[%clk
0:00:25.6]} 0-1